[Event "GER-ch Youth U10 2020"]
[Site "Willingen"]
[Date "2020.10.31"]
[Round "7.11"]
[White "Stichter, Constantin"]
[Black "Kullmann, Theo"]
[Result "0-1"]
[ECO "C45"]
[WhiteElo "1476"]
[BlackElo "1632"]
[Annotator "NA RC"]
[PlyCount "58"]
[EventDate "2020.10.27"]
[EventType "swiss"]
[EventRounds "7"]
[EventCountry "GER"]
[SourceTitle "playchess.com"]
[Source "ChessBase"]
[SourceQuality "1"]
[TimeControl "40/4500+30:900+30"]

1. e4 {[%emt 0:00:00]} e5 {[%emt 0:00:00]} 2. Nf3 {[%emt 0:00:35]} Nc6 {[%emt 0:00:00]} 3. d4 {[%emt 0:00:49]} exd4 {[%emt 0:00:01]} 4. Nxd4 {[%emt 0:00:17]} Bc5 {[%emt 0:00:05]} 5. Be3 {[%emt 0:00:13]} Bb6 {[%emt 0:00:11]} 6. Nf5 {[%emt 0:00:23]} Qf6 {[%emt 0:02:31]} 7. Nc3 {[%emt 0:01:26]} Nge7 {[%emt 0:01:41]} 8. Bxb6 {[%emt 0:02:26]} axb6 {[%emt 0:01:11]} 9. Nxe7 {[%emt 0:00:44]} Nxe7 {[%emt 0:00:40]} 10. Bc4 {[%emt 0:01:04]} O-O {[%emt 0:02:11]} 11. O-O {[%emt 0:00:07]} d6 {[%emt 0:00:59]} 12. Qd2 {[%emt 0:02:44]} Qg6 {[%emt 0:01:29]} 13. f3 {[%emt 0:01:03]} Bd7 {[%emt 0:04:34]} 14. Rad1 {[%emt 0:00:47]} Ra5 {[%emt 0:03:35]} 15. Ne2 {[%emt 0:03:12]} h5 {[%emt 0:04:56]} 16. a3 {[%emt 0:03:11]} h4 {[%emt 0:05:11]} 17. Kh1 Qf6 {[%emt 0:03:44]} 18. c3 {[%emt 0:02:49]} Ng6 {[%emt 0:02:31]} 19. f4 {[%emt 0:01:10]} Bc6 20. Bd3 {[%emt 0:02:41]} Re8 {[%emt 0:02:54]} 21. Qc2 {[%emt 0:05:27]} Qe7 {[%emt 0:06:32]} 22. Nd4 {[%emt 0:02:27]} h3 {[%emt 0:06:55]} 23. Nxc6 {[%emt 0:00:28]} hxg2+ {[%emt 0:01:20]} 24. Kxg2 {[%emt 0:01:06]} bxc6 {[%emt 0:00:35]} 25. Kh1 {[%emt 0:00:08]} Qh4 {[%emt 0:00:53]} 26. Qf2 {[%emt 0:00:55]} Qh6 {[%emt 0:05:06]} 27. Rd2 {[%emt 0:01:42]} Rh5 {[%emt 0:03:04]} 28. Qg3 {[%emt 0:02:45]} Rh4 {[%emt 0:02:33]} 29. Rdf2 {[%emt 0:02:08]} Rh3 {[%emt 0:01:20]} 0-1

[Event "GER-ch Youth U10 2020"]
[Site "Willingen"]
[Date "2020.10.31"]
[Round "7.12"]
[White "Zhang, Yibo"]
[Black "Mandalka, Justus"]
[Result "0-1"]
[ECO "B34"]
[WhiteElo "1299"]
[BlackElo "1437"]
[Annotator "NA RC"]
[PlyCount "119"]
[EventDate "2020.10.27"]
[EventType "swiss"]
[EventRounds "7"]
[EventCountry "GER"]
[SourceTitle "playchess.com"]
[Source "ChessBase"]
[SourceQuality "1"]
[TimeControl "40/4500+30:900+30"]

1. e4 {[%emt 0:00:00]} c5 {[%emt 0:00:00]} 2. Nf3 {[%emt 0:00:00]} Nc6 {[%emt 0:00:00]} 3. d4 {[%emt 0:00:00]} cxd4 {[%emt 0:00:00]} 4. Nxd4 {[%emt 0:00:00]} g6 {[%emt 0:00:00]} 5. Nc3 {[%emt 0:00:07]} Bg7 {[%emt 0:00:00]} 6. Be3 {[%emt 0:00:06]} d6 {[%emt 0:00:33]} 7. Bc4 {[%emt 0:00:20]} a6 {[%emt 0:00:43]} 8. O-O {[%emt 0:00:43]} e6 {[%emt 0:01:10]} 9. Re1 {[%emt 0:01:45]} Nge7 {[%emt 0:00:18]} 10. Bb3 {[%emt 0:00:21]} O-O {[%emt 0:00:23]} 11. Qd2 {[%emt 0:00:56]} Re8 {[%emt 0:01:48]} 12. Rad1 {[%emt 0:00:48]} d5 {[%emt 0:02:54]} 13. Qe2 {[%emt 0:02:32]} Nxd4 {[%emt 0:05:54]} 14. Bxd4 {[%emt 0:00:33]} e5 {[%emt 0:00:16]} 15. Bc5 {[%emt 0:01:44]} d4 {[%emt 0:00:24]} 16. Nd5 {[%emt 0:00:37]} Nxd5 {[%emt 0:00:41]} 17. Bxd5 {[%emt 0:00:17]} Qc7 {[%emt 0:00:49]} 18. Ba3 {[%emt 0:01:12]} Be6 {[%emt 0:00:38]} 19. Bxe6 {[%emt 0:00:43]} Rxe6 {[%emt 0:00:22]} 20. Rd3 {[%emt 0:00:39]} Rc6 {[%emt 0:01:06]} 21. b3 {[%emt 0:09:47]} Rxc2 {[%emt 0:01:35]} 22. Rd2 {[%emt 0:00:08]} Rc8 {[%emt 0:01:17]} 23. g3 {[%emt 0:01:16]} Bh6 {[%emt 0:01:27]} 24. Rxc2 {[%emt 0:01:42]} Qxc2 {[%emt 0:00:44]} 25. Qxc2 {[%emt 0:00:05]} Rxc2 {[%emt 0:00:13]} 26. Bd6 {[%emt 0:00:05]} f6 {[%emt 0:00:39]} 27. Rd1 {[%emt 0:02:17]} Re2 {[%emt 0:02:06]} 28. f3 {[%emt 0:06:46]} Be3+ {[%emt 0:00:14]} 29. Kf1 {[%emt 0:00:40]} Rxh2 {[%emt 0:00:44]} 30. f4 {[%emt 0:00:24]} Rf2+ {[%emt 0:01:20]} 31. Ke1 {[%emt 0:00:14]} exf4 {[%emt 0:00:26]} 32. Bxf4 {[%emt 0:00:27]} Rxa2 {[%emt 0:01:20]} 33. Bxe3 {[%emt 0:00:38]} dxe3 {[%emt 0:00:10]} 34. Rd8+ {[%emt 0:00:46]} Kg7 {[%emt 0:00:08]} 35. Rd7+ {[%emt 0:00:04]} Kh6 {[%emt 0:00:06]} 36. Rxb7 {[%emt 0:00:03]} Rb2 {[%emt 0:00:59]} 37. Rb6 {[%emt 0:00:39]} Kg5 {[%emt 0:00:37]} 38. Rxa6 {[%emt 0:00:13]} Rxb3 {[%emt 0:00:08]} 39. Ke2 {[%emt 0:00:04]} h5 {[%emt 0:01:17]} 40. Rd6 {[%emt 0:01:43]} f5 {[%emt 0:01:27]} 41. e5 {[%emt 0:15:23]} Rb5 {[%emt 0:15:50]} 42. Re6 {[%emt 0:00:30]} f4 {[%emt 0:00:34]} 43. gxf4+ {[%emt 0:03:52]} Kxf4 {[%emt 0:00:45]} 44. Rxg6 {[%emt 0:00:25]} Rxe5 {[%emt 0:00:05]} 45. Rd6 {[%emt 0:01:09]} h4 {[%emt 0:00:37]} 46. Rh6 {[%emt 0:00:09]} Kg3 {[%emt 0:00:06]} 47. Rh8 {[%emt 0:00:14]} h3 {[%emt 0:02:22]} 48. Rh7 {[%emt 0:00:18]} Kg2 {[%emt 0:01:19]} 49. Rh8 {[%emt 0:00:23]} h2 {[%emt 0:00:56]} 50. Rg8+ {[%emt 0:00:08]} Kh3 {[%emt 0:02:41]} 51. Rh8+ {[%emt 0:01:06]} Kg3 {[%emt 0:00:09]} 52. Rh7 {[%emt 0:00:06]} Re4 {[%emt 0:00:49]} 53. Rg7+ {[%emt 0:00:57]} Kh3 {[%emt 0:00:14]} 54. Kf3 {[%emt 0:02:23]} h1=Q+ {[%emt 0:00:11]} 55. Ke2 {[%emt 0:00:12]} Qg2+ {[%emt 0:00:05]} 56. Rxg2 {[%emt 0:00:09]} Kxg2 {[%emt 0:00:08]} 57. Kd1 {[%emt 0:00:15]} e2+ {[%emt 0:00:05]} 58. Ke1 {[%emt 0:00:05]} Re8 {[%emt 0:00:05]} 59. Kd2 {[%emt 0:01:44]} e1=Q+ {[%emt 0:00:10]} 60. Kc2 0-1

[Event "GER-ch Youth U10 2020"]
[Site "Willingen"]
[Date "2020.10.31"]
[Round "7.13"]
[White "Herrmann, Arthur"]
[Black "Barthel, Jacob"]
[Result "1/2-1/2"]
[ECO "C88"]
[WhiteElo "1151"]
[BlackElo "1231"]
[Annotator "NA RC"]
[PlyCount "54"]
[EventDate "2020.10.27"]
[EventType "swiss"]
[EventRounds "7"]
[EventCountry "GER"]
[SourceTitle "playchess.com"]
[Source "ChessBase"]
[SourceQuality "1"]
[TimeControl "40/4500+30:900+30"]

1. e4 {[%emt 0:00:00]} e5 {[%emt 0:00:00]} 2. Nf3 {[%emt 0:00:00]} Nc6 {[%emt 0:00:00]} 3. Bb5 {[%emt 0:00:00]} a6 {[%emt 0:00:00]} 4. Ba4 {[%emt 0:00:00]} Nf6 {[%emt 0:00:06]} 5. O-O {[%emt 0:00:00]} Be7 {[%emt 0:00:17]} 6. Re1 {[%emt 0:00:02]} b5 {[%emt 0:00:08]} 7. Bb3 {[%emt 0:00:04]} d6 {[%emt 0:00:35]} 8. c3 {[%emt 0:00:53]} Bg4 {[%emt 0:00:08]} 9. h3 {[%emt 0:00:14]} Bh5 {[%emt 0:00:09]} 10. d3 {[%emt 0:00:46]} O-O {[%emt 0:00:19]} 11. Be3 {[%emt 0:00:31]} Na5 {[%emt 0:02:36]} 12. Bc2 {[%emt 0:00:31]} Nc6 {[%emt 0:08:26]} 13. Qe2 {[%emt 0:10:24]} Re8 {[%emt 0:09:52]} 14. Nbd2 {[%emt 0:01:04]} d5 {[%emt 0:05:05]} 15. Nf1 {[%emt 0:05:47]} d4 {[%emt 0:01:38]} 16. cxd4 {[%emt 0:00:59]} exd4 {[%emt 0:00:09]} 17. Bf4 {[%emt 0:02:10]} Nb4 {[%emt 0:04:58]} 18. Bb3 {[%emt 0:02:52]} a5 {[%emt 0:19:01]} 19. a3 {[%emt 0:04:58]} a4 {[%emt 0:01:07]} 20. Bd1 {[%emt 0:01:41]} Nc6 {[%emt 0:01:40]} 21. Rc1 {[%emt 0:01:37]} Ra6 {[%emt 0:07:43]} 22. Ng3 {[%emt 0:02:19]} Bxf3 {[%emt 0:00:46]} 23. Qxf3 {[%emt 0:00:14]} Bd6 {[%emt 0:07:17]} 24. Bxd6 {[%emt 0:06:23]} Qxd6 {[%emt 0:03:24]} 25. Nf5 {[%emt 0:01:07]} Qe5 {[%emt 0:04:02]} 26. Qg3 {[%emt 0:07:03]} Qxg3 {[%emt 0:01:43]} 27. Nxg3 {[%emt 0:00:14]} Re7 {[%emt 0:01:03]} 1/2-1/2

[Event "GER-ch Youth U10 2020"]
[Site "Willingen"]
[Date "2020.10.31"]
[Round "7.14"]
[White "Theviot, Luca"]
[Black "Nönnig, Jakob"]
[Result "1-0"]
[ECO "D04"]
[WhiteElo "1423"]
[BlackElo "1442"]
[Annotator "NA RC"]
[PlyCount "195"]
[EventDate "2020.10.27"]
[EventType "swiss"]
[EventRounds "7"]
[EventCountry "GER"]
[SourceTitle "playchess.com"]
[Source "ChessBase"]
[SourceQuality "1"]
[TimeControl "40/4500+30:900+30"]

1. d4 {[%emt 0:00:00]} Nf6 {[%emt 0:00:00]} 2. Nf3 {[%emt 0:00:00]} d5 {[%emt 0:02:53]} 3. e3 {[%emt 0:00:00]} Bf5 {[%emt 0:01:03]} 4. Bd3 {[%emt 0:00:36]} Bg6 {[%emt 0:01:09]} 5. O-O {[%emt 0:00:16]} Nbd7 {[%emt 0:01:12]} 6. Nbd2 {[%emt 0:03:18]} e6 {[%emt 0:02:58]} 7. Re1 {[%emt 0:02:59]} c5 {[%emt 0:02:40]} 8. Bxg6 {[%emt 0:01:56]} hxg6 {[%emt 0:02:48]} 9. e4 {[%emt 0:01:55]} dxe4 {[%emt 0:04:54]} 10. Nxe4 {[%emt 0:00:09]} Nxe4 {[%emt 0:02:58]} 11. Rxe4 {[%emt 0:00:14]} cxd4 {[%emt 0:01:57]} 12. Nxd4 {[%emt 0:06:00]} Qc7 {[%emt 0:02:40]} 13. Nf3 {[%emt 0:02:42]} Bd6 {[%emt 0:06:42]} 14. h3 {[%emt 0:01:54]} Nf6 {[%emt 0:03:59]} 15. Re1 {[%emt 0:00:23]} Rd8 {[%emt 0:00:55]} 16. Qe2 {[%emt 0:00:27]} Nd5 {[%emt 0:05:23]} 17. Bg5 {[%emt 0:03:37]} Rd7 {[%emt 0:05:34]} 18. Rad1 {[%emt 0:01:26]} O-O {[%emt 0:03:10]} 19. c3 {[%emt 0:04:30]} Re8 {[%emt 0:03:24]} 20. Rxd5 {[%emt 0:03:21]} Bh2+ {[%emt 0:01:30]} 21. Nxh2 {[%emt 0:00:31]} Rxd5 {[%emt 0:00:08]} 22. Nf3 {[%emt 0:03:16]} Qa5 {[%emt 0:03:12]} 23. b4 {[%emt 0:05:46]} Qc7 {[%emt 0:01:26]} 24. c4 {[%emt 0:04:36]} Rd7 {[%emt 0:00:16]} 25. c5 {[%emt 0:03:56]} f6 {[%emt 0:03:00]} 26. Bd2 {[%emt 0:03:17]} e5 {[%emt 0:00:38]} 27. Rc1 {[%emt 0:06:57]} Red8 {[%emt 0:01:15]} 28. Qc4+ {[%emt 0:04:51]} Kh7 {[%emt 0:01:25]} 29. Be1 {[%emt 0:01:13]} Rd1 {[%emt 0:00:59]} 30. Qc2 {[%emt 0:03:09]} R1d3 {[%emt 0:01:02]} 31. Nd2 {[%emt 0:01:33]} Qc6 {[%emt 0:01:49]} 32. Nc4 {[%emt 0:01:30]} R3d7 {[%emt 0:02:43]} 33. Nd6 {[%emt 0:00:30]} b6 {[%emt 0:00:44]} 34. a3 {[%emt 0:05:46]} bxc5 {[%emt 0:03:16]} 35. bxc5 {[%emt 0:00:18]} Rb8 {[%emt 0:01:42]} 36. Bb4 {[%emt 0:00:09]} f5 {[%emt 0:01:03]} 37. Kh2 {[%emt 0:04:04]} Re7 {[%emt 0:01:04]} 38. Rg1 {[%emt 0:00:48]} Rf8 {[%emt 0:00:47]} 39. g4 {[%emt 0:01:07]} fxg4 {[%emt 0:00:33]} 40. Rxg4 {[%emt 0:00:36]} Rf6 {[%emt 0:00:34]} 41. Rh4+ {[%emt 0:17:25]} Kg8 {[%emt 0:15:18]} 42. Qe4 {[%emt 0:02:55]} Qxe4 {[%emt 0:07:24]} 43. Nxe4 {[%emt 0:00:07]} Rc6 {[%emt 0:00:18]} 44. Kg2 {[%emt 0:00:42]} Kf7 {[%emt 0:00:23]} 45. Nd6+ {[%emt 0:00:23]} Ke6 {[%emt 0:00:23]} 46. Rg4 {[%emt 0:00:31]} Kd7 {[%emt 0:01:06]} 47. Rc4 {[%emt 0:00:00]} Re6 {[%emt 0:00:00]} 48. Rc3 {[%emt 0:00:00]} a6 {[%emt 0:00:00]} 49. Kf3 {[%emt 0:00:00]} Rf6+ {[%emt 0:00:00]} 50. Ke3 {[%emt 0:00:00]} Rf4 {[%emt 0:00:00]} 51. Nb7 {[%emt 0:00:00]} Rh4 {[%emt 0:00:00]} 52. Ke2 {[%emt 0:00:00]} Rf4 {[%emt 0:00:00]} 53. Na5 {[%emt 0:00:00]} Rc7 {[%emt 0:00:00]} 54. c6+ {[%emt 0:00:00]} Ke6 {[%emt 0:00:00]} 55. Rd3 {[%emt 0:00:00]} Rd4 {[%emt 0:00:00]} 56. Rxd4 {[%emt 0:00:00]} exd4 {[%emt 0:00:00]} 57. Kd3 {[%emt 0:00:00]} Kd5 {[%emt 0:00:00]} 58. Bd2 {[%emt 0:00:00]} Kc5 {[%emt 0:00:00]} 59. Bf4 {[%emt 0:00:00]} Rc8 {[%emt 0:00:00]} 60. c7 {[%emt 0:00:00]} Kb6 {[%emt 0:00:00]} 61. Nb3 {[%emt 0:00:00]} Kb7 {[%emt 0:00:45]} 62. Nxd4 {[%emt 0:00:00]} a5 {[%emt 0:00:18]} 63. Nb5 {[%emt 0:00:00]} Kb6 {[%emt 0:01:36]} 64. Nc3 {[%emt 0:00:00]} Kc6 {[%emt 0:00:34]} 65. Kd4 {[%emt 0:00:18]} g5 {[%emt 0:00:53]} 66. Bg3 {[%emt 0:00:12]} g6 {[%emt 0:00:44]} 67. a4 {[%emt 0:00:56]} Kb7 {[%emt 0:01:38]} 68. Nd5 {[%emt 0:00:16]} Ra8 {[%emt 0:01:18]} 69. Ne7 {[%emt 0:00:15]} Re8 {[%emt 0:00:22]} 70. c8=Q+ {[%emt 0:00:12]} Rxc8 {[%emt 0:00:07]} 71. Nxc8 {[%emt 0:00:30]} Kxc8 {[%emt 0:00:30]} 72. Kc5 {[%emt 0:00:30]} Kb7 {[%emt 0:00:30]} 73. Kb5 {[%emt 0:00:30]} Ka8 {[%emt 0:00:30]} 74. Kxa5 {[%emt 0:00:30]} Ka7 {[%emt 0:00:30]} 75. Kb5 {[%emt 0:00:30]} Kb7 {[%emt 0:00:30]} 76. Kc5 {[%emt 0:00:30]} Ka6 {[%emt 0:00:30]} 77. Kd6 {[%emt 0:00:30]} Ka5 {[%emt 0:00:30]} 78. Ke6 {[%emt 0:00:30]} Kxa4 {[%emt 0:00:30]} 79. Kf6 {[%emt 0:00:30]} Kb5 {[%emt 0:00:30]} 80. Kxg5 {[%emt 0:00:30]} Kc5 {[%emt 0:00:00]} 81. Kxg6 Kd5 82. h4 {[%emt 0:00:00]} Ke6 {[%emt 0:00:00]} 83. h5 {[%emt 0:00:00]} Ke7 {[%emt 0:00:00]} 84. Kg7 {[%emt 0:00:00]} Ke6 {[%emt 0:00:00]} 85. h6 {[%emt 0:00:00]} Kf5 {[%emt 0:00:00]} 86. h7 {[%emt 0:00:00]} Kg4 {[%emt 0:00:00]} 87. h8=Q Kf5 88. Qh5+ Ke4 89. Kf6 Kd4 90. Qe5+ Kc4 91. Qd6 Kc3 92. Ke5 Kc4 93. Qd4+ Kb3 94. Qc5 Kb2 95. Kd4 Kb1 96. Kd3 Kb2 97. Qc2+ Ka1 98. Be5# 1-0

[Event "GER-ch Youth U10 2020"]
[Site "Willingen"]
[Date "2020.10.31"]
[Round "7.15"]
[White "Pimenov, Danil"]
[Black "Mündörfer, Sebastian"]
[Result "0-1"]
[ECO "B35"]
[WhiteElo "1235"]
[BlackElo "1175"]
[Annotator "NA RC"]
[PlyCount "68"]
[EventDate "2020.10.27"]
[EventType "swiss"]
[EventRounds "7"]
[EventCountry "GER"]
[SourceTitle "playchess.com"]
[Source "ChessBase"]
[SourceQuality "1"]
[TimeControl "40/4500+30:900+30"]

{[%evp 25,68,-102,-114,-213,-177,-206,-206,-247,-227,-251,-254,-313,-300,-376,-357,-357,-300,-369,-364,-399,-396,-388,-356,-381,-368,-402,-369,-516,-538,-483,-417,-524,-512,-686,-689,-675,-661,-1021,-666,-3072,-831,-979,-786,-1272,-1060]} 1. e4 {[%emt 0:00:00]} c5 {[%emt 0:00:00]} 2. Nf3 {[%emt 0:00:00]} g6 {[%emt 0:00:00]} 3. d4 {[%emt 0:00:00]} cxd4 {[%emt 0:00:00]} 4. Nxd4 {[%emt 0:00:00]} Nc6 {[%emt 0:00:30]} 5. Be3 {[%emt 0:00:00]} Bg7 {[%emt 0:00:06]} 6. Nc3 {[%emt 0:00:26]} Nf6 {[%emt 0:00:14]} 7. Bc4 {[%emt 0:00:38]} Qa5 {[%emt 0:00:06]} 8. f3 {[%emt 0:00:23]} Qb4 {[%emt 0:00:31]} 9. Bb3 {[%emt 0:00:30]} Nxe4 {[%emt 0:07:15]} 10. Nxc6 {[%emt 0:02:42]} Bxc3+ {[%emt 0:00:16]} 11. bxc3 {[%emt 0:00:32]} Qxc3+ {[%emt 0:00:38]} 12. Ke2 {[%emt 0:01:06]} dxc6 {[%emt 0:00:43]} 13. Bd4 {[%emt 0:00:58]} e5 {[%emt 0:00:22]} 14. Qd3 {[%emt 0:03:12] B35: Sicilian: Accelerated Dragon with 5 Nc3: main line.} (14. Be3 $17) 14... Qxd3+ {[%emt 0:02:18]} ({Don't take} 14... exd4 15. Qxe4+ Be6 16. Bxe6 $17) 15. cxd3 {[%emt 0:00:11] [#]} exd4 $146 {[%emt 0:00:10]} ({Predecessor:} 15... Ng3+ 16. hxg3 exd4 17. Rhe1 Be6 18. Kd2 Kd7 19. Bxe6+ fxe6 20. Rab1 b5 21. Rb4 c5 22. Rxb5 Kd6 23. Rc1 Rac8 24. Rb7 a6 25. Rc4 Rb8 26. Ra7 Ra8 27. Rb7 h5 28. Rb6+ Kd5 {½-½ (28) Eulitz,C (1331)-Kobald,J (1207) Regensburg 2014}) 16. dxe4 {[%emt 0:00:12] Black is clearly better.} Be6 {[%emt 0:00:51]} 17. Bxe6 {[%emt 0:00:09]} fxe6 $19 {[%emt 0:00:10] Endgame KRR-KRR} 18. Rhd1 {[%emt 0:01:19]} c5 {[%emt 0:00:18]} 19. e5 {[%emt 0:01:09]} Ke7 {[%emt 0:01:01]} 20. Kd3 {[%emt 0:01:48]} Rac8 {[%emt 0:00:30]} 21. f4 {[%emt 0:01:03]} Rhd8 {[%emt 0:00:13]} 22. Rdc1 {[%emt 0:00:30]} b6 {[%emt 0:03:10]} 23. a4 {[%emt 0:00:18]} Rd5 {[%emt 0:03:32]} 24. Rab1 {[%emt 0:02:54]} Rb8 {[%emt 0:01:25]} 25. Rb2 {[%emt 0:01:51] [#]} g5 $1 {[%emt 0:03:56]} 26. Rf1 {[%emt 0:05:07]} (26. fxg5 Rxe5) 26... gxf4 {[%emt 0:00:26]} 27. Rxf4 {[%emt 0:00:43]} Rf8 {[%emt 0:00:14]} 28. Re4 {[%emt 0:01:19]} Kd7 {[%emt 0:02:16] Black is clearly winning.} 29. g4 {[%emt 0:00:58]} Rf3+ {[%emt 0:00:36]} 30. Ke2 {[%emt 0:02:51]} Ra3 {[%emt 0:00:15]} 31. h4 {[%emt 0:00:45]} Rxa4 {[%emt 0:00:42] [#] Hoping for ...d3+.} 32. g5 {[%emt 0:00:25]} Ke7 {[%emt 0:00:40] Threatens to win with ...d3+.} 33. Kf1 {[%emt 0:01:23]} Ra1+ {[%emt 0:01:33]} 34. Kg2 {[%emt 0:00:10]} d3 {[%emt 0:00:14] White did not feel at home in the position after the opening. Av CentiPawn Loss W=-140/B=-97. Weighted=-164/-137} 0-1

[Event "GER-ch Youth U10 2020"]
[Site "Willingen"]
[Date "2020.10.31"]
[Round "7.16"]
[White "Radeke, Timothy"]
[Black "Laux, Filip"]
[Result "1-0"]
[ECO "D10"]
[WhiteElo "1143"]
[BlackElo "1198"]
[Annotator "NA RC"]
[PlyCount "149"]
[EventDate "2020.10.27"]
[EventType "swiss"]
[EventRounds "7"]
[EventCountry "GER"]
[SourceTitle "playchess.com"]
[Source "ChessBase"]
[SourceQuality "1"]
[TimeControl "40/4500+30:900+30"]

1. d4 {[%emt 0:00:00]} d5 {[%emt 0:00:00]} 2. c4 {[%emt 0:00:00]} c6 {[%emt 0:00:00]} 3. Nc3 {[%emt 0:00:00]} Nf6 {[%emt 0:00:14]} 4. cxd5 {[%emt 0:00:00]} cxd5 {[%emt 0:00:10]} 5. Nf3 {[%emt 0:00:00]} Nc6 {[%emt 0:00:20]} 6. Bf4 {[%emt 0:00:46]} a6 {[%emt 0:00:37]} 7. e3 {[%emt 0:00:28]} Bf5 {[%emt 0:00:53]} 8. Be2 {[%emt 0:01:06]} Rc8 {[%emt 0:00:59]} 9. O-O {[%emt 0:01:59]} h6 {[%emt 0:01:04]} 10. Rc1 {[%emt 0:00:54]} e6 {[%emt 0:01:19]} 11. Qb3 {[%emt 0:02:13]} Na5 {[%emt 0:00:28]} 12. Qa4+ {[%emt 0:00:46]} Nc6 {[%emt 0:00:15]} 13. Ne5 {[%emt 0:01:31]} Qb6 {[%emt 0:01:53]} 14. Nb1 {[%emt 0:07:08]} Qb4 {[%emt 0:07:17]} 15. Qxb4 {[%emt 0:02:25]} Bxb4 {[%emt 0:00:11]} 16. Bxa6 {[%emt 0:01:24]} bxa6 {[%emt 0:02:20]} 17. Rxc6 {[%emt 0:00:19]} Rxc6 {[%emt 0:01:40]} 18. Nxc6 {[%emt 0:00:53]} Be7 {[%emt 0:00:27]} 19. Nxe7 {[%emt 0:00:48]} Kxe7 {[%emt 0:00:09]} 20. Nc3 {[%emt 0:01:08]} Rc8 {[%emt 0:02:09]} 21. Be5 {[%emt 0:00:48]} Bd3 {[%emt 0:02:59]} 22. Bxf6+ {[%emt 0:01:14]} Kxf6 {[%emt 0:01:16]} 23. Rc1 {[%emt 0:00:27]} Ke7 {[%emt 0:04:53]} 24. Nxd5+ {[%emt 0:00:31]} Kd8 {[%emt 0:00:40]} 25. Rxc8+ {[%emt 0:00:19]} Kxc8 {[%emt 0:00:06]} 26. Nb4 {[%emt 0:00:51]} Bb5 {[%emt 0:00:17]} 27. f3 {[%emt 0:01:15]} a5 {[%emt 0:00:25]} 28. Nc2 {[%emt 0:00:29]} Kc7 {[%emt 0:00:34]} 29. Kf2 {[%emt 0:00:12]} Kd6 {[%emt 0:00:13]} 30. e4 {[%emt 0:00:23]} g5 {[%emt 0:00:56]} 31. Ke3 {[%emt 0:02:10]} f5 {[%emt 0:01:08]} 32. e5+ {[%emt 0:02:50]} Kd5 {[%emt 0:00:19]} 33. f4 {[%emt 0:00:58]} g4 {[%emt 0:01:59]} 34. g3 {[%emt 0:00:28]} Kc6 {[%emt 0:05:13]} 35. Kd2 {[%emt 0:01:06]} Kd5 {[%emt 0:00:36]} 36. Ke3 {[%emt 0:00:51]} Kc6 {[%emt 0:01:12]} 37. Na3 {[%emt 0:00:26]} Ba6 {[%emt 0:00:11]} 38. Nb1 {[%emt 0:00:27]} Kd5 {[%emt 0:01:03]} 39. Nd2 {[%emt 0:00:37]} a4 {[%emt 0:01:27]} 40. a3 {[%emt 0:00:25]} Kc6 {[%emt 0:05:05]} 41. Nb1 {[%emt 0:15:37]} Bc4 {[%emt 0:15:58]} 42. Nc3 {[%emt 0:00:17]} Bb3 {[%emt 0:00:15]} 43. Kd3 {[%emt 0:00:11]} Kb6 {[%emt 0:01:34]} 44. Ne2 {[%emt 0:02:29]} Kc6 {[%emt 0:01:16]} 45. Nc1 {[%emt 0:00:49]} Bd5 {[%emt 0:00:26]} 46. Kc3 {[%emt 0:00:10]} Kb5 {[%emt 0:00:49]} 47. Nd3 {[%emt 0:00:45]} Bb3 {[%emt 0:01:07]} 48. Nc5 {[%emt 0:00:37]} Bd5 {[%emt 0:00:18]} 49. b3 {[%emt 0:00:22]} axb3 {[%emt 0:00:36]} 50. Nxb3 {[%emt 0:00:10]} Ka4 {[%emt 0:00:05]} 51. Nd2 {[%emt 0:02:47]} Kxa3 {[%emt 0:02:13]} 52. Nc4+ {[%emt 0:01:46]} Ka2 {[%emt 0:00:24]} 53. Kb4 {[%emt 0:00:58]} Kb1 {[%emt 0:00:16]} 54. Kc5 {[%emt 0:00:28]} Kc2 {[%emt 0:00:22]} 55. Nb6 Bb3 {[%emt 0:02:07]} 56. d5 {[%emt 0:00:15]} exd5 57. Nxd5 {[%emt 0:00:20]} Ba4 {[%emt 0:00:46]} 58. Ne7 {[%emt 0:00:20]} Kd3 {[%emt 0:00:30]} 59. Nxf5 {[%emt 0:00:10]} h5 {[%emt 0:00:13]} 60. e6 {[%emt 0:01:02]} Ke4 {[%emt 0:00:42]} 61. Ng7 {[%emt 0:00:10]} Kf3 {[%emt 0:01:12]} 62. e7 {[%emt 0:00:41]} Kg2 {[%emt 0:00:06]} 63. e8=Q {[%emt 0:00:32]} Bxe8 {[%emt 0:00:07]} 64. Nxe8 {[%emt 0:00:08]} Kxh2 {[%emt 0:00:05]} 65. f5 {[%emt 0:00:05]} Kxg3 {[%emt 0:00:07]} 66. f6 {[%emt 0:00:05]} h4 {[%emt 0:00:04]} 67. f7 {[%emt 0:00:08]} h3 {[%emt 0:00:13]} 68. f8=Q {[%emt 0:00:06]} h2 {[%emt 0:00:09]} 69. Qd6+ {[%emt 0:00:33]} Kg2 {[%emt 0:00:12]} 70. Qd2+ {[%emt 0:00:20]} Kg1 {[%emt 0:00:13]} 71. Qe1+ {[%emt 0:00:42]} Kg2 {[%emt 0:00:18]} 72. Qe2+ {[%emt 0:00:06]} Kh3 {[%emt 0:01:24]} 73. Qf1+ {[%emt 0:00:23]} Kg3 {[%emt 0:00:12]} 74. Nf6 {[%emt 0:00:21]} Kh4 {[%emt 0:00:34]} 75. Nxg4 {[%emt 0:00:14]} 1-0

[Event "GER-ch Youth U10 2020"]
[Site "Willingen"]
[Date "2020.10.31"]
[Round "7.17"]
[White "Wolff, Calvin"]
[Black "Thümler, Floris"]
[Result "1-0"]
[ECO "B07"]
[WhiteElo "1219"]
[BlackElo "1295"]
[Annotator "NA RC"]
[PlyCount "59"]
[EventDate "2020.10.27"]
[EventType "swiss"]
[EventRounds "7"]
[EventCountry "GER"]
[SourceTitle "playchess.com"]
[Source "ChessBase"]
[SourceQuality "1"]
[TimeControl "40/4500+30:900+30"]

1. e4 {[%emt 0:00:20]} d6 {[%emt 0:00:23]} 2. d4 {[%emt 0:01:13]} Nf6 {[%emt 0:01:29]} 3. Nc3 {[%emt 0:01:32]} g6 {[%emt 0:01:43]} 4. Be3 {[%emt 0:01:55]} c6 {[%emt 0:01:20]} 5. f3 {[%emt 0:02:00]} b5 {[%emt 0:02:14]} 6. Qd2 {[%emt 0:01:38]} Bg7 {[%emt 0:01:47]} 7. Bh6 {[%emt 0:01:26]} O-O {[%emt 0:01:55]} 8. g4 {[%emt 0:01:14]} Bxh6 {[%emt 0:00:57]} 9. Qxh6 {[%emt 0:00:07]} e5 {[%emt 0:01:36]} 10. O-O-O {[%emt 0:00:40]} Qe7 {[%emt 0:02:10]} 11. h4 {[%emt 0:03:28]} b4 {[%emt 0:03:05]} 12. Na4 {[%emt 0:04:19]} Bd7 {[%emt 0:02:39]} 13. b3 {[%emt 0:00:24]} exd4 {[%emt 0:03:34]} 14. g5 {[%emt 0:13:39]} Nxe4 {[%emt 0:02:50]} 15. Re1 {[%emt 0:07:01]} d5 {[%emt 0:03:05]} 16. fxe4 {[%emt 0:01:57]} dxe4 {[%emt 0:01:19]} 17. h5 {[%emt 0:01:31]} Bf5 {[%emt 0:02:30]} 18. Bc4 {[%emt 0:01:38]} Qe5 {[%emt 0:03:23]} 19. Nb2 {[%emt 0:02:38]} Qg7 {[%emt 0:05:05]} 20. hxg6 {[%emt 0:00:25]} Qxh6 {[%emt 0:02:06]} 21. gxf7+ {[%emt 0:00:18]} Kg7 {[%emt 0:01:12]} 22. gxh6+ {[%emt 0:00:20]} Kg6 {[%emt 0:02:03]} 23. Ne2 {[%emt 0:00:20]} Nd7 {[%emt 0:02:29]} 24. Nxd4 {[%emt 0:01:00]} Ne5 {[%emt 0:02:21]} 25. Rhg1+ {[%emt 0:01:08]} Ng4 {[%emt 0:02:46]} 26. Nxf5 {[%emt 0:01:07]} Kxf5 {[%emt 0:01:55]} 27. Ref1+ {[%emt 0:00:11]} Kg5 {[%emt 0:02:02]} 28. Be6 {[%emt 0:00:18]} Kxh6 {[%emt 0:03:06]} 29. Rxg4 {[%emt 0:00:10]} Kh5 {[%emt 0:00:19]} 30. Rh1# {[%emt 0:00:06]} 1-0